fUST/lending_fUST_20241202
["ID","MTS","AMOUNT","RATE_DAILY","PERIOD"]
[343958556,1733145038420,-500.0,0.00027349,2]
[343958557,1733145038429,-500.0,0.00027349,2]
[343958558,1733145038438,-500.0,0.00027349,2]
[343958562,1733145038448,-500.0,0.00027349,2]
[343958566,1733145038457,-500.0,0.00027349,2]
[343958567,1733145038466,-367.23588494,0.00027349,2]
[343958568,1733145038476,-500.0,0.00027349,2]
[343958570,1733145038486,-500.0,0.00027349,2]
[343958572,1733145038495,-500.0,0.00027349,2]
[343958574,1733145038504,-493.61774822,0.00027349,2]
[343958576,1733145038516,-6.38225178,0.00027349,2]
[343958577,1733145038528,-500.0,0.00027349,2]
[343958578,1733145038537,-500.0,0.00027349,2]
[343958579,1733145038546,-282.74868572,0.00027349,2]
[343958588,1733145040369,-217.25131428,0.00027349,2]
[343958589,1733145040379,-500.0,0.00027349,2]
[343958590,1733145040389,-500.0,0.00027349,2]
[343958591,1733145040399,-500.0,0.00027349,2]
[343958592,1733145040409,-500.0,0.00027349,2]
[343958593,1733145040418,-500.0,0.00027349,2]
[343958594,1733145040428,-500.0,0.00027349,2]
[343958595,1733145040438,-500.0,0.00027349,2]
[343958596,1733145040448,-500.0,0.00027349,2]
[343958597,1733145040458,-500.0,0.00027349,2]
[343958598,1733145040469,-500.0,0.00027349,2]
[343958599,1733145040479,-500.0,0.00027349,2]
[343958600,1733145040488,-500.0,0.00027349,2]
[343958601,1733145040498,-500.0,0.00027349,2]
[343958602,1733145040507,-628.50198224,0.00027349,2]
[343958603,1733145040517,-500.0,0.00027349,2]
[343958604,1733145040526,-500.0,0.00027349,2]
[343958605,1733145040538,-500.0,0.00027349,2]
[343958606,1733145040548,-500.0,0.00027349,2]
[343958607,1733145040558,-500.0,0.00027349,2]
[343958608,1733145040568,-500.0,0.00027349,2]
[343958609,1733145040587,-500.0,0.00027349,2]
[343958610,1733145040603,-500.0,0.00027349,2]
[343958611,1733145040614,-500.0,0.00027349,2]
[343958612,1733145040624,-500.0,0.00027349,2]
[343958613,1733145040634,-500.0,0.00027349,2]
[343958614,1733145040645,-500.0,0.00027349,2]
[343958615,1733145040655,-500.0,0.00027349,2]
[343958616,1733145040666,-500.0,0.00027349,2]
[343958617,1733145040677,-500.0,0.00027349,2]
[343958618,1733145040687,-500.0,0.00027349,2]
[343958619,1733145040697,-500.0,0.00027349,2]
[343958620,1733145040708,-500.0,0.00027349,2]
[343958621,1733145040717,-500.0,0.00027349,2]
[343958622,1733145040727,-500.0,0.00027349,2]
[343958623,1733145040737,-500.0,0.00027349,2]
[343958624,1733145040746,-500.0,0.00027349,2]
[343958625,1733145040756,-500.0,0.00027349,2]
[343958626,1733145040766,-635.37647993,0.00027349,2]
[343958627,1733145040780,-500.0,0.00027349,2]
[343958628,1733145040790,-500.0,0.00027349,2]
[343958629,1733145040799,-500.0,0.00027349,2]
[343958630,1733145040809,-500.0,0.00027349,2]
[343958631,1733145040821,-500.0,0.00027349,2]
[343958632,1733145040944,-571.25231,0.00029006,15]
[343958633,1733145040955,-458.33,0.00030407,10]
[343958634,1733145040965,-95858.51588583,0.00030417,10]
[343958635,1733145040977,-26871.85525152,0.00030417,10]
[343958636,1733145040988,-666.15,0.00030417,10]
[343958648,1733145043241,-549.360146,0.00029006,15]
[343958649,1733145043251,-374.80794022,0.00030416,2]
[343958650,1733145043261,-1462.30797729,0.00030417,10]
[343958654,1733145043358,-13137.76704821,0.00030417,10]
[343958683,1733145046308,-500.0,0.00027349,2]
[343958684,1733145046318,-500.0,0.00027349,2]
[343958685,1733145046327,-2489.50258033,0.00030417,10]
[343958686,1733145046343,-500.0,0.00027349,2]
[343958687,1733145046353,-21762.270397,0.00030417,10]
[343958836,1733145413985,169.862578,0.00013973,2]
[343958844,1733146051745,3321.54,0.00022,30]
[343958846,1733146083496,167.656066,0.00013973,2]
[343958852,1733146122161,1493.05489746,0.00025,120]
[343958893,1733146234493,-300.0,0.00019989,2]
[343958894,1733146234503,-300.0,0.00019989,2]
[343958895,1733146234514,-30223.44810886,0.0001999,2]
[343958896,1733146234524,-25377.60608145,0.00020377,2]
[343958897,1733146234534,-262.19306705,0.00021,2]
[343958898,1733146234544,-236.29439437,0.00021,2]
[343958899,1733146234554,-10292.78977069,0.00021,2]
[343958900,1733146234564,-6830.0,0.00021,2]
[343958901,1733146234574,-420.0,0.00021766,2]
[343958902,1733146234584,-162.187917,0.00021808,2]
[343958903,1733146234594,-152.80957039,0.000219,2]
[343958904,1733146234604,-420.0,0.00021988,2]
[343958905,1733146234615,-264.0,0.00022,2]
[343958906,1733146234625,-264.0,0.00022192,2]
[343958907,1733146234635,-264.0,0.00023014,2]
[343958908,1733146234645,-152.80957034,0.00023583,2]
[343958909,1733146234660,-587.0,0.00023701,2]
[343958910,1733146234670,-271.0,0.00024164,2]
[343958911,1733146234679,-587.0,0.00024187,2]
[343958912,1733146234689,-500.0,0.00024202,2]
[343958913,1733146234698,-500.0,0.00024202,2]
[343958914,1733146234708,-500.0,0.00024202,2]
[343958915,1733146234718,-500.0,0.00024202,2]
[343958916,1733146234728,-500.0,0.00024202,2]
[343958917,1733146234738,-500.0,0.00024202,2]
[343958918,1733146234748,-500.0,0.00024202,2]
[343958919,1733146234757,-500.0,0.00024202,2]
[343958920,1733146234767,-171.19562133,0.00024202,2]
[343958921,1733146234777,-500.0,0.00024202,2]
[343958922,1733146234786,-500.0,0.00024202,2]
[343958923,1733146234796,-500.0,0.00024202,2]
[343958924,1733146234805,-500.0,0.00024202,2]
[343958925,1733146234815,-500.0,0.00024202,2]
[343958926,1733146234825,-500.0,0.00024202,2]
[343958927,1733146234835,-500.0,0.00024202,2]
[343958928,1733146234844,-500.0,0.00024202,2]
[343958929,1733146234854,-500.0,0.00024202,2]
[343958930,1733146234864,-383.69735694,0.00024202,2]
[343958931,1733146234873,-455.72562332,0.00024202,2]
[343958932,1733146234882,-570.70165529,0.00024202,2]
[343958933,1733146234892,-500.0,0.00024202,2]
[343958934,1733146234905,-500.0,0.00024202,2]
[343958935,1733146234915,-500.0,0.00024202,2]
[343958936,1733146234923,-500.0,0.00024202,2]
[343958937,1733146234932,-500.0,0.00024202,2]
[343958938,1733146234940,-500.0,0.00024202,2]
[343958939,1733146234949,-500.0,0.00024202,2]
[343958940,1733146234957,-500.0,0.00024202,2]
[343958941,1733146234966,-500.0,0.00024202,2]
[343958942,1733146234973,-500.0,0.00024202,2]
[343958943,1733146234981,-500.0,0.00024202,2]
[343958944,1733146234989,-500.0,0.00024202,2]
[343958945,1733146234997,-500.0,0.00024202,2]
[343958946,1733146235005,-500.0,0.00024202,2]
[343958947,1733146235014,-500.0,0.00024202,2]
[343958948,1733146235027,-500.0,0.00024202,2]
[343958949,1733146235037,-500.0,0.00024202,2]
[343958950,1733146235044,-500.0,0.00024202,2]
[343958951,1733146235052,-632.10407706,0.00024202,2]
[343958952,1733146235059,-500.0,0.00024202,2]
[343958953,1733146235066,-500.0,0.00024202,2]
[343958954,1733146235075,-500.0,0.00024202,2]
[343958955,1733146235084,-500.0,0.00024202,2]
[343958956,1733146235092,-500.0,0.00024202,2]
[343958957,1733146235101,-500.0,0.00024202,2]
[343958958,1733146235108,-500.0,0.00024202,2]
[343958959,1733146235116,-500.0,0.00024202,2]
[343958960,1733146235125,-500.0,0.00024202,2]
[343958961,1733146235131,-500.0,0.00024202,2]
[343958962,1733146235143,-582.27132565,0.00024202,2]
[343958963,1733146235154,-500.0,0.00024202,2]
[343958964,1733146235244,-500.0,0.00024202,2]
[343958965,1733146235253,-500.0,0.00024202,2]
[343958966,1733146235260,-500.0,0.00024202,2]
[343958967,1733146235269,-500.0,0.00024202,2]
[343958968,1733146235277,-500.0,0.00024202,2]
[343958969,1733146235285,-24900.0,0.00024203,2]
[343958970,1733146235291,-172.738419,0.00024379,2]
[343958971,1733146235301,-2213.20089004,0.00025,7]
[343958972,1733146235310,-3067.1711146,0.00025,2]
[343958973,1733146235319,-2201.51273837,0.00025,2]
[343958974,1733146235326,-3955.4336692,0.0002509,2]
[343958976,1733146235335,-152.80957034,0.00025266,2]
[343958978,1733146235343,-1663.69435696,0.00025465,7]
[343958980,1733146235351,-264.0,0.00025775,2]
[343958982,1733146235359,-823.0,0.00025808,2]
[343958984,1733146235367,-1245.43039052,0.00026,30]
[343958985,1733146235374,-823.0,0.00026605,2]
[343958987,1733146235381,-152.80957034,0.0002695,2]
[343958989,1733146235389,-264.0,0.00027386,2]
[343958990,1733146235396,-500.0,0.00027397,2]
[343958991,1733146235406,-168.0,0.00027397,7]
[343958992,1733146235415,-500.0,0.00027397,7]
[343958993,1733146235422,-1962.78,0.00027397,7]
[343958994,1733146235431,-500.0,0.00027397,7]
[343958995,1733146235439,-500.0,0.00027397,7]
[343958996,1733146235449,-500.0,0.00027397,7]
[343958997,1733146235458,-500.0,0.00027397,7]
[343958998,1733146235467,-500.0,0.00027397,7]
[343959000,1733146235475,-380.0,0.00027397,7]
[343959002,1733146235483,-264.0,0.00027616,2]
[343959003,1733146235491,-168.0,0.00027671,7]
[343959004,1733146235500,-1962.78,0.00027671,7]
[343959005,1733146235509,-500.0,0.00027671,7]
[343959006,1733146235517,-500.0,0.00027671,7]
[343959007,1733146235528,-500.0,0.00027671,7]
[343959008,1733146235536,-280.74767697,0.00027671,7]
[343959009,1733146235545,-784.69,0.000279,2]
[343959010,1733146235552,-153.52,0.000279,31]
[343959011,1733146235560,-153.52,0.000279,31]
[343959012,1733146235567,-153.52,0.000279,31]
[343959013,1733146235575,-153.52,0.000279,31]
[343959014,1733146235584,-153.52,0.000279,31]
[343959015,1733146235592,-153.52,0.000279,31]
[343959016,1733146235599,-153.52,0.000279,31]
[343959017,1733146235607,-153.52,0.000279,31]
[343959018,1733146235615,-153.52,0.000279,31]
[343959019,1733146235623,-153.52,0.000279,31]
[343959020,1733146235632,-153.52,0.000279,31]
[343959021,1733146235641,-500.0,0.00027944,7]
[343959022,1733146235654,-168.0,0.00027945,7]
[343959023,1733146235662,-1962.78,0.00027945,7]
[343959024,1733146235669,-500.0,0.00027945,7]
[343959025,1733146235675,-214.49783337,0.00027945,7]
[343959026,1733146235681,-500.0,0.00027945,7]
[343959027,1733146235688,-4487.12432266,0.00028,2]
[343959028,1733146235697,-200.503336,0.00028012,2]
[343959029,1733146235703,-167.970894,0.00028012,2]
[343959030,1733146235710,-1152.0,0.00028102,2]
[343959031,1733146235717,-2376.0,0.00028174,2]
[343959032,1733146235728,-2173.0,0.00028174,2]
[343959033,1733146235736,-150.0,0.00028174,2]
[343959034,1733146235746,-500.0,0.00028218,7]
[343959035,1733146235754,-265.52895472,0.00028219,7]
[343959036,1733146235762,-1962.78,0.00028219,7]
[343959037,1733146235769,-500.0,0.00028219,7]
[343959038,1733146235778,-500.0,0.00028219,7]
[343959039,1733146235785,-167.970894,0.00028362,2]
[343959040,1733146235792,-500.0,0.00028492,7]
[343959041,1733146235804,-1962.78,0.00028493,7]
[343959042,1733146235812,-500.0,0.00028493,7]
[343959043,1733146235826,-500.0,0.00028493,7]
[343959044,1733146235834,-153.52,0.000285,31]
[343959045,1733146235844,-153.52,0.000285,31]
[343959046,1733146235854,-153.52,0.000285,31]
[343959047,1733146235863,-153.52,0.000285,31]
[343959048,1733146235874,-153.52,0.000285,31]
[343959049,1733146235882,-153.52,0.000285,31]
[343959050,1733146235891,-153.52,0.000285,31]
[343959051,1733146235899,-153.52,0.000285,31]
[343959052,1733146235909,-153.52,0.000285,31]
[343959053,1733146235916,-153.52,0.000285,31]
[343959054,1733146235924,-153.52,0.000285,31]
[343959055,1733146235932,-153.52,0.000285,31]
[343959056,1733146235941,-153.52,0.000285,31]
[343959057,1733146235949,-153.52,0.000285,31]
[343959058,1733146235958,-153.52,0.000285,31]
[343959059,1733146235965,-153.52,0.000285,31]
[343959060,1733146235972,-153.52,0.000285,31]
[343959061,1733146235980,-153.52,0.000285,31]
[343959062,1733146235990,-153.52,0.000285,31]
[343959063,1733146235997,-153.52,0.000285,31]
[343959064,1733146236006,-153.52,0.000285,31]
[343959065,1733146236014,-153.52,0.000285,31]
[343959066,1733146236023,-152.80957034,0.00028633,2]
[343959067,1733146236032,-167.970894,0.00028712,2]
[343959068,1733146236042,-500.0,0.00028766,7]
[343959069,1733146236051,-507.61996873,0.00028767,4]
[343959070,1733146236060,-1962.78,0.00028767,7]
[343959071,1733146236067,-500.0,0.00028767,7]
[343959072,1733146236075,-500.0,0.00028767,7]
[343959073,1733146236083,-264.0,0.00028997,2]
[343959074,1733146236093,-500.0,0.0002904,7]
[343959075,1733146236101,-1962.78,0.00029041,7]
[343959076,1733146236107,-500.0,0.00029041,7]
[343959077,1733146236114,-500.0,0.00029041,7]
[343959078,1733146236121,-167.970894,0.00029062,2]
[343959079,1733146236130,-153.52,0.000291,31]
[343959080,1733146236140,-153.52,0.000291,31]
[343959081,1733146236149,-153.52,0.000291,31]
[343959082,1733146236162,-153.52,0.000291,31]
[343959083,1733146236171,-153.52,0.000291,31]
[343959084,1733146236181,-153.52,0.000291,31]
[343959085,1733146236188,-153.52,0.000291,31]
[343959086,1733146236195,-153.52,0.000291,31]
[343959087,1733146236204,-153.52,0.000291,31]
[343959088,1733146236212,-153.52,0.000291,31]
[343959089,1733146236220,-153.52,0.000291,31]
[343959090,1733146236228,-153.52,0.000291,31]
[343959091,1733146236237,-153.52,0.000291,31]
[343959092,1733146236245,-153.52,0.000291,31]
[343959093,1733146236252,-153.52,0.000291,31]
[343959094,1733146236259,-153.52,0.000291,31]
[343959095,1733146236268,-153.52,0.000291,31]
[343959096,1733146236277,-153.52,0.000291,31]
[343959097,1733146236286,-153.52,0.000291,31]
[343959098,1733146236296,-153.52,0.000291,31]
[343959099,1733146236307,-153.52,0.000291,31]
[343959100,1733146236318,-153.52,0.000291,31]
[343959101,1733146236329,-550.812,0.00029148,15]
[343959102,1733146236340,-156.89235167,0.00029185,2]
[343959103,1733146236351,-190.62849334,0.00029185,2]
[343959104,1733146236362,-618.57511068,0.00029185,2]
[343959105,1733146236372,-365.33234357,0.00029186,5]
[343959106,1733146236382,-500.0,0.00029186,5]
[343959107,1733146236394,-282.09399042,0.00029186,5]
[343959108,1733146236407,-1152.0,0.00029266,2]
[343959109,1733146236418,-500.0,0.00029314,7]
[343959110,1733146236429,-1962.78,0.00029315,7]
[343959111,1733146236440,-500.0,0.00029315,7]
[343959112,1733146236451,-500.0,0.00029315,7]
[343959113,1733146236462,-200.503336,0.00029413,2]
[343959114,1733146236472,-167.970894,0.00029413,2]
[343959115,1733146236483,-2179.20439641,0.000295,14]
[343959116,1733146236494,-500.0,0.00029588,7]
[343959117,1733146236505,-1962.78,0.00029589,7]
[343959118,1733146236516,-500.0,0.00029589,7]
[343959119,1733146236526,-500.0,0.00029589,7]
[343959120,1733146236537,-153.52,0.000297,31]
[343959121,1733146236548,-153.52,0.000297,31]
[343959122,1733146236560,-153.52,0.000297,31]
[343959123,1733146236571,-153.52,0.000297,31]
[343959124,1733146236582,-153.52,0.000297,31]
[343959125,1733146236593,-153.52,0.000297,31]
[343959126,1733146236604,-153.52,0.000297,31]
[343959127,1733146236614,-153.52,0.000297,31]
[343959128,1733146236624,-153.52,0.000297,31]
[343959129,1733146236635,-153.52,0.000297,31]
[343959130,1733146236646,-153.52,0.000297,31]
[343959131,1733146236658,-153.52,0.000297,31]
[343959132,1733146236669,-153.52,0.000297,31]
[343959133,1733146236680,-153.52,0.000297,31]
[343959134,1733146236691,-153.52,0.000297,31]
[343959135,1733146236703,-153.52,0.000297,31]
[343959136,1733146236714,-153.52,0.000297,31]
[343959137,1733146236725,-153.52,0.000297,31]
[343959138,1733146236737,-153.52,0.000297,31]
[343959139,1733146236747,-153.52,0.000297,31]
[343959140,1733146236757,-153.52,0.000297,31]
[343959141,1733146236767,-153.52,0.000297,31]
[343959142,1733146236777,-1000.0,0.00029734,5]
[343959143,1733146236787,-500.0,0.00029862,7]
[343959144,1733146236798,-980.83052185,0.00029863,3]
[343959145,1733146236809,-1962.78,0.00029863,7]
[343959146,1733146236820,-500.0,0.00029863,7]
[343959147,1733146236831,-500.0,0.00029863,7]
[343959148,1733146236841,-151.0,0.0003,120]
[343959149,1733146236852,-151.0,0.0003,120]
[343959150,1733146236863,-5377.0256319,0.0003,10]
[343959151,1733146236874,-800.48228658,0.0003,2]
[343959152,1733146236885,-167.91287049,0.0003,2]
[343959153,1733146236896,-1693.93957598,0.0003,3]
[343959154,1733146236909,-225.0,0.0003,2]
[343959155,1733146236920,-500.0,0.00030136,7]
[343959156,1733146236931,-1962.78,0.00030136,7]
[343959157,1733146236942,-284.21449219,0.00030136,7]
[343959158,1733146236953,-500.0,0.00030136,7]
[343959159,1733146236964,-391.029721,0.00030137,120]
[343959160,1733146236976,-1960.73508841,0.00030222,2]
[343959161,1733146236986,-152.80957034,0.00030316,2]
[343959162,1733146236998,-6666.0,0.00030317,2]
[343959163,1733146237009,-150.5,0.00030386,120]
[343959164,1733146237021,-150.5,0.00030386,120]
[343959165,1733146237031,-150.5,0.00030396,120]
[343959166,1733146237042,-150.5,0.00030397,120]
[343959167,1733146237051,-1600.4,0.000304,3]
[343959168,1733146237061,-2000.0,0.000304,3]
[343959169,1733146237071,-153.52,0.000304,31]
[343959170,1733146237081,-153.52,0.000304,31]
[343959171,1733146237092,-153.52,0.000304,31]
[343959172,1733146237102,-153.52,0.000304,31]
[343959173,1733146237113,-153.52,0.000304,31]
[343959174,1733146237124,-153.52,0.000304,31]
[343959175,1733146237138,-153.52,0.000304,31]
[343959176,1733146237151,-153.52,0.000304,31]
[343959177,1733146237167,-153.52,0.000304,31]
[343959178,1733146237179,-153.52,0.000304,31]
[343959179,1733146237190,-153.52,0.000304,31]
[343959180,1733146237200,-150.5,0.00030406,120]
[343959181,1733146237210,-154.0,0.00030406,120]
[343959182,1733146237221,-150.5,0.00030407,120]
[343959183,1733146237232,-500.0,0.0003041,7]
[343959184,1733146237242,-1962.78,0.0003041,7]
[343959185,1733146237253,-500.0,0.0003041,7]
[343959186,1733146237264,-272.80803661,0.00030416,2]
[343959187,1733146237276,-35204.47713565,0.00030416,2]
[343959188,1733146237287,-312.33995018,0.00030416,2]
[343959189,1733146237297,-151.0,0.00030416,7]
[343959190,1733146237307,-151.0,0.00030416,7]
[343959191,1733146237318,-151.0,0.00030416,7]
[343959192,1733146237329,-151.0,0.00030416,7]
[343959193,1733146237339,-151.0,0.00030416,7]
[343959194,1733146237350,-170.124265,0.00030416,7]
[343959195,1733146237361,-157.033705,0.00030416,7]
[343959196,1733146237371,-157.033705,0.00030416,7]
[343959197,1733146237382,-157.033705,0.00030416,7]
[343959198,1733146237392,-157.033705,0.00030416,7]
[343959199,1733146237406,-157.033705,0.00030416,7]
[343959200,1733146237416,-157.033705,0.00030416,7]
[343959201,1733146237427,-157.033705,0.00030416,7]
[343959202,1733146237438,-157.033705,0.00030416,7]
[343959203,1733146237448,-157.033705,0.00030416,7]
[343959204,1733146237459,-157.033705,0.00030416,7]
[343959205,1733146237470,-157.033705,0.00030416,7]
[343959206,1733146237480,-157.033705,0.00030416,7]
[343959207,1733146237490,-157.033705,0.00030416,7]
[343959208,1733146237500,-157.033705,0.00030416,7]
[343959209,1733146237511,-157.033705,0.00030416,7]
[343959210,1733146237521,-157.033705,0.00030416,7]
[343959211,1733146237531,-157.033705,0.00030416,7]
[343959212,1733146237542,-157.033705,0.00030416,7]
[343959213,1733146237553,-157.033705,0.00030416,7]
[343959214,1733146237564,-157.033703,0.00030416,7]
[343959215,1733146237574,-151.0,0.00030416,7]
[343959216,1733146237692,-151.0,0.00030416,7]
[343959217,1733146237702,-156.165391,0.00030416,7]
[343959218,1733146237712,-152.707552,0.00030416,7]
[343959219,1733146237722,-6166510.65515648,0.00030416,10]
[343959220,1733146237737,-7296.37056547,0.00030416,10]
[343959221,1733146237757,-500.0,0.00024202,2]
[343959222,1733146237766,-500.0,0.00024202,2]
[343959223,1733146237775,-3387.59730127,0.00030416,10]
[343959231,1733146238460,-500.0,0.00024202,2]
[343959232,1733146238470,-500.0,0.00024202,2]
[343959233,1733146238479,-500.0,0.00024202,2]
[343959234,1733146238489,-500.0,0.00024202,2]
[343959235,1733146238498,-500.0,0.00024202,2]
[343959236,1733146238508,-500.0,0.00024202,2]
[343959237,1733146238518,-500.0,0.00024202,2]
[343959238,1733146238527,-500.0,0.00024202,2]
[343959239,1733146238537,-500.0,0.00024202,2]
[343959241,1733146238546,-500.0,0.00024202,2]
[343959242,1733146238555,-500.0,0.00024202,2]
[343959244,1733146238565,-293.17515881,0.00024279,2]
[343959246,1733146238580,-531.0,0.00028174,2]
[343959248,1733146238590,-504.1,0.00029148,15]
[343959249,1733146238599,-18300.97378999,0.00030416,10]
[343959250,1733146238611,-1500.82058366,0.00030416,10]
[343959251,1733146238622,-19998.65393419,0.00030416,10]
[343959254,1733146238633,-87049.45444565,0.00030416,10]
[343959294,1733146240432,-327.261581,0.00024953,2]
[343959295,1733146240442,-29025.17120726,0.00030416,10]
[343959296,1733146240454,-23157.42612801,0.00030416,10]
[343959297,1733146240465,-7243.49655385,0.00030416,10]
[343959313,1733146243559,-500.0,0.00024202,2]
[343959314,1733146243569,-532.6741359,0.00024202,2]
[343959315,1733146243578,-485.29,0.00029148,15]
[343959316,1733146243588,-265.24,0.00030406,10]
[343959317,1733146243597,-2005.13455568,0.00030416,10]
[343959336,1733146673672,167.458163,0.00013973,2]
[343959340,1733147020625,10000.0,0.00022,30]
[343959341,1733147045657,10000.0,0.00022,30]
[343959342,1733147227139,-5000.0,0.00021797,2]
[343959343,1733147227163,-5000.0,0.00022017,2]
[343959344,1733147227187,-5747.0,0.00022759,2]
[343959345,1733147227209,-300.0,0.0002276,2]
[343959346,1733147227238,-300.0,0.0002276,2]
[343959347,1733147227260,-1270.9678869,0.00022764,2]
[343959348,1733147227282,-153.54672734,0.00023286,2]
[343959349,1733147227303,-195.31907312,0.00024002,2]
[343959350,1733147227328,-734.96070115,0.00024346,2]
[343959351,1733147227350,-172.738419,0.00024351,2]
[343959352,1733147227372,-24900.0,0.00024385,2]
[343959353,1733147227396,-250.0,0.00024446,2]
[343959354,1733147227432,-164.212994,0.00024493,2]
[343959355,1733147227462,-420.0,0.00024713,2]
[343959356,1733147227490,-166.982,0.00024943,8]
[343959357,1733147227514,-428.0487677,0.00025,5]
[343959358,1733147227540,-420.0,0.00025036,2]
[343959359,1733147227563,-734.96070114,0.00025199,2]
[343959360,1733147227587,-734.96070114,0.00026052,2]
[343959361,1733147227613,-293.976925,0.00026185,2]
[343959362,1733147227636,-366.67,0.00026762,10]
[343959363,1733147227660,-633.61,0.00026763,10]
[343959364,1733147227684,-440.01,0.00026767,10]
[343959365,1733147227709,-528.01,0.00026768,10]
[343959366,1733147227735,-502.08223544,0.00026772,2]
[343959367,1733147227756,-500.0,0.00026772,2]
[343959368,1733147227780,-500.0,0.00026772,2]
[343959369,1733147227803,-298.64666786,0.00026772,2]
[343959370,1733147227827,-500.0,0.00026772,2]
[343959371,1733147227851,-500.0,0.00026772,2]
[343959372,1733147227873,-500.0,0.00026772,2]
[343959373,1733147227898,-500.0,0.00026772,2]
[343959374,1733147227922,-500.0,0.00026772,2]
[343959375,1733147227944,-500.0,0.00026772,2]
[343959376,1733147227970,-500.0,0.00026772,2]
[343959377,1733147227993,-500.0,0.00026772,2]
[343959378,1733147228014,-500.0,0.00026772,2]
[343959379,1733147228037,-500.0,0.00026772,2]
[343959380,1733147228061,-500.0,0.00026772,2]
[343959381,1733147228083,-500.0,0.00026772,2]
[343959382,1733147228107,-500.0,0.00026772,2]
[343959383,1733147228132,-500.0,0.00026772,2]
[343959384,1733147228154,-500.0,0.00026772,2]
[343959385,1733147228178,-500.0,0.00026772,2]
[343959386,1733147228203,-500.0,0.00026772,2]
[343959387,1733147228232,-500.0,0.00026772,2]
[343959388,1733147228256,-500.0,0.00026772,2]
[343959389,1733147228279,-362.62502731,0.00026772,2]
[343959390,1733147228317,-500.0,0.00026772,2]
[343959391,1733147228350,-500.0,0.00026772,2]
[343959392,1733147228381,-339.15828289,0.00026772,2]
[343959393,1733147228409,-500.0,0.00026772,2]
[343959394,1733147228441,-500.0,0.00026772,2]
[343959395,1733147228471,-500.0,0.00026772,2]
[343959396,1733147228499,-500.0,0.00026772,2]
[343959397,1733147228530,-500.0,0.00026772,2]
[343959398,1733147228558,-198.34849393,0.00026772,2]
[343959399,1733147228586,-284.06644939,0.00026772,2]
[343959400,1733147228613,-500.0,0.00026772,2]
[343959401,1733147228643,-500.0,0.00026772,2]
[343959402,1733147228673,-500.0,0.00026772,2]
[343959403,1733147228699,-500.0,0.00026772,2]
[343959404,1733147228728,-335.02484026,0.00026772,2]
[343959405,1733147228756,-500.0,0.00026772,2]
[343959406,1733147228784,-500.0,0.00026772,2]
[343959407,1733147228812,-500.0,0.00026772,2]
[343959408,1733147228837,-500.0,0.00026772,2]
[343959409,1733147228863,-500.0,0.00026772,2]
[343959410,1733147228887,-500.0,0.00026772,2]
[343959411,1733147228911,-500.0,0.00026772,2]
[343959412,1733147228936,-500.0,0.00026772,2]
[343959413,1733147228964,-500.0,0.00026772,2]